Department Family,Entity,Date,Expense Type,Expense Area,Supplier,Trans no,Amount
DCMS,Tate Gallery,19/03/20,Electricity,Estates (FM) Management,(DIRECT DEBIT ONLY)  EDF Energy Limited,10327301,"134,643.34 "
DCMS,Tate Gallery,19/03/20,Electricity,Estates (FM) Management,(DIRECT DEBIT ONLY)  EDF Energy Limited,10327305,"74,037.04 "
DCMS,Tate Gallery,31/03/20,Water,Estates (FM) Management,(DIRECT DEBIT ONLY) Castle Water Limited,10328659,"42,749.09 "
DCMS,Tate Gallery,09/03/20,Advertising,Communications,AKA Promotions Ltd,10319131,"31,546.00 "
DCMS,Tate Gallery,09/03/20,Advertising,Communications,AKA Promotions Ltd,10319131,31.55 
DCMS,Tate Gallery,19/03/20,Advertising,Communications,AKA Promotions Ltd,10326742,38.69 
DCMS,Tate Gallery,19/03/20,Advertising,Communications,AKA Promotions Ltd,10326742,"41,387.00 "
DCMS,Tate Gallery,19/03/20,Advertising,Communications,AKA Promotions Ltd,10326743,43.71 
DCMS,Tate Gallery,19/03/20,Advertising,Communications,AKA Promotions Ltd,10326743,"47,721.00 "
DCMS,Tate Gallery,31/03/20,Recruitment campaigns,Members Marketing,AKA Promotions Ltd,10328849,"26,005.79 "
DCMS,Tate Gallery,11/03/20,Software maintenance,Information Systems,Blackbaud Europe Ltd,10326827,"45,097.67 "
DCMS,Tate Gallery,19/03/20,Network services,Members Communications,Blue Leaf Communications Ltd,10326324,"26,352.00 "
DCMS,Tate Gallery,24/03/20,Network services,Members Communications,Blue Leaf Communications Ltd,10326910,"67,900.51 "
DCMS,Tate Gallery,09/03/20,Hardware purchases,IS Strategy Group,CAE Technology Services Ltd,10326515,"209,156.82 "
DCMS,Tate Gallery,19/03/20,Advertising,Communications,Design & Artists Copyright Society,10326738,"26,395.00 "
DCMS,Tate Gallery,13/03/20,Directly ordered works,Capital Projects,Endpoint Limited,10326971,"26,144.75 "
DCMS,Tate Gallery,31/03/20,Press costs,Press,Fouchard Filippi Communications,10328096,"8,500.00 "
DCMS,Tate Gallery,31/03/20,Public Relations,Press,Fouchard Filippi Communications,10328096,"15,000.00 "
DCMS,Tate Gallery,31/03/20,Press costs,Press,Fouchard Filippi Communications,10328096,"6,500.00 "
DCMS,Tate Gallery,31/03/20,Rates,Site Costs,Liverpool City Council,10328375,"94,720.00 "
DCMS,Tate Gallery,12/03/20,Org - Duplicates/fabrication of work,Exhibitions & Displays,Metro Imaging Ltd,10326950,"33,714.40 "
DCMS,Tate Gallery,12/03/20,Org - Special conservation & framing,Exhibitions & Displays,Metro Imaging Ltd,10326950,"30,706.90 "
DCMS,Tate Gallery,31/03/20,Org - Special conservation & framing,Exhibitions & Displays,Metro Imaging Ltd,10328799,"25,642.90 "
DCMS,Tate Gallery,31/03/20,Org - Duplicates/fabrication of work,Exhibitions & Displays,Metro Imaging Ltd,10328799,"25,642.90 "
DCMS,Tate Gallery,27/03/20,Hardware maintenance,Information Systems,Microsoft Ltd,10328240,"25,175.55 "
DCMS,Tate Gallery,19/03/20,"Inst - Equipment, furniture & plinths",Exhibitions & Displays,millimetre ltd,10327682,"33,471.74 "
DCMS,Tate Gallery,26/03/20,Org - Fees,Director,Momentum Transport Consultancy Limited,10328236,"25,852.50 "
DCMS,Tate Gallery,24/03/20,Programme leaflets,Members Communications,Royal Mail Group Plc,10328031,"45,013.20 "
DCMS,Tate Gallery,24/03/20,Programme leaflets,Members Communications,Royal Mail Group Plc,10328031,"4,485.08 "
DCMS,Tate Gallery,12/03/20,Software maintenance,Membership and Ticketing Services,Salesforce UK Limited,2154230,"243,200.00 "
DCMS,Tate Gallery,13/03/20,Software maintenance,Membership and Ticketing Services,Salesforce UK Limited,10327294,"243,200.00 "
DCMS,Tate Gallery,19/03/20,Agency staff,Visitor Experience & Operations,Securitas Security Services UK Limited,10327513,"58,820.92 "
DCMS,Tate Gallery,31/03/20,Agency staff,Visitor Experience & Operations,Securitas Security Services UK Limited,10329189,"26,733.78 "
DCMS,Tate Gallery,25/03/20,Org - Fees,Exhibitions & Displays,"Sitara Systems, LLC",10327736,"56,133.71 "
DCMS,Tate Gallery,19/03/20,Facilities Management contract,Site Costs,SPIE Matthew Hall Ltd,10326024,"22,065.10 "
DCMS,Tate Gallery,19/03/20,Specialist contracts,Site Costs,SPIE Matthew Hall Ltd,10326024,"4,693.07 "
DCMS,Tate Gallery,19/03/20,Facilities Management contract,Estates (FM) Management,SPIE Matthew Hall Ltd,10326024,"227,108.18 "
DCMS,Tate Gallery,19/03/20,Facilities Management contract,Estates (FM) Management,SPIE Matthew Hall Ltd,10326024,"11,686.00 "
DCMS,Tate Gallery,06/03/20,Minor new works,Capital Projects,SPIE Matthew Hall Ltd,10326580,"32,780.68 "
DCMS,Tate Gallery,13/03/20,Minor new works,Estates (FM) Management,SPIE Matthew Hall Ltd,10326582,"38,509.31 "
DCMS,Tate Gallery,13/03/20,Minor new works,Capital Projects,SPIE Matthew Hall Ltd,10326846,"133,768.39 "
DCMS,Tate Gallery,13/03/20,Minor new works,Capital Projects,SPIE Matthew Hall Ltd,10326847,"212,287.56 "
DCMS,Tate Gallery,12/03/20,Minor new works,Capital Projects,SPIE Matthew Hall Ltd,10326980,"26,281.23 "
DCMS,Tate Gallery,13/03/20,Minor new works,Estates (FM) Management,SPIE Matthew Hall Ltd,10326982,"48,849.31 "
DCMS,Tate Gallery,26/03/20,Facilities Management contract,Estates (FM) Management,SPIE Matthew Hall Ltd,10327381,"91,898.78 "
DCMS,Tate Gallery,26/03/20,Facilities Management contract,Estates (FM) Management,SPIE Matthew Hall Ltd,10327381,"146,895.40 "
DCMS,Tate Gallery,26/03/20,Facilities Management contract,Site Costs,SPIE Matthew Hall Ltd,10327381,"22,065.10 "
DCMS,Tate Gallery,26/03/20,Specialist contracts,Site Costs,SPIE Matthew Hall Ltd,10327381,"4,693.07 "
DCMS,Tate Gallery,24/03/20,Minor new works,Capital Projects,SPIE Matthew Hall Ltd,10327955,"235,331.47 "
DCMS,Tate Gallery,25/03/20,Minor new works,Capital Projects,SPIE Matthew Hall Ltd,10327956,"549,611.35 "
DCMS,Tate Gallery,24/03/20,Minor new works,Capital Projects,SPIE Matthew Hall Ltd,10327957,"177,375.00 "
DCMS,Tate Gallery,24/03/20,Minor new works,Capital Projects,SPIE Matthew Hall Ltd,10327958,"25,212.08 "
DCMS,Tate Gallery,31/03/20,Repairs,Estates (FM) Management,SPIE Matthew Hall Ltd,10328810,"27,666.56 "
DCMS,Tate Gallery,31/03/20,Minor new works,Capital Projects,SPIE Matthew Hall Ltd,10328824,"32,780.68 "
DCMS,Tate Gallery,23/03/20,Minor new works,Capital Projects,Symons Construction,10327801,"80,130.69 "
DCMS,Tate Gallery,31/03/20,Members Room expense,Members Room,Tate Eats (FKA Tate Catering),10303352,"27,295.04 "
DCMS,Tate Gallery,31/03/20,Tate Events (free),Development - Advocacy & Events,Tate Eats (FKA Tate Catering),10308311,"38,742.00 "
DCMS,Tate Gallery,18/03/20,Tate Events (free),Development - Advocacy & Events,Tate Eats (FKA Tate Catering),10324283,"34,575.00 "
DCMS,Tate Gallery,16/03/20,Tate floor plan,Members Communications,Tate Enterprises Ltd T/A Tate Corporate Events,10326189,"226,500.00 "
DCMS,Tate Gallery,18/03/20,"Inst - Equipment, furniture & plinths",Exhibitions & Displays,The Hub,10327584,"62,970.96 "
DCMS,Tate Gallery,18/03/20,Inst - Striking & Installation,Exhibitions & Displays,The Hub,10327585,"94,135.75 "
DCMS,Tate Gallery,23/03/20,Training - Tate,Human Resources,TheWholeStory� (Consult) LLP,10327681,"55,000.00 "
DCMS,Tate Gallery,11/03/20,Cleaning - Contracts,Estates (FM) Management,Total Support Services Limited,10326848,"91,883.07 "
DCMS,Tate Gallery,13/03/20,Cleaning - Contracts,Estates (FM) Management,Total Support Services Limited,10326849,"56,654.28 "
DCMS,Tate Gallery,31/03/20,Cleaning - Contracts,Estates (FM) Management,Total Support Services Limited,10328718,"56,654.28 "
DCMS,Tate Gallery,31/03/20,Cleaning - Contracts,Estates (FM) Management,Total Support Services Limited,10328719,"91,883.07 "
DCMS,Tate Gallery,13/03/20,Site security - Contracts,"Sites, Security and Services",Wilson James Ltd,10327030,"31,864.67 "
DCMS,Tate Gallery,13/03/20,Site security - Contracts,"Sites, Security and Services",Wilson James Ltd,10327030,"281,298.32 "
DCMS,Tate Gallery,13/03/20,Site security - Contracts,"Sites, Security and Services",Wilson James Ltd,10327030,"141,247.28 "
DCMS,Tate Gallery,23/03/20,Market research,Audience Reseach and Data,X Marks The Spot,10327859,"20,000.00 "
DCMS,Tate Gallery,23/03/20,Market research,Audience Reseach and Data,X Marks The Spot,10327859,"5,000.00 "
DCMS,Tate Gallery,16/03/20,Payroll processing,Human Resources,Zellis Uk Ltd FKA NORTHGATE ARINSO UK LIMITED,10326438,"36,320.67 "
